fUSD/lending_fUSD_20250906
["ID","MTS","AMOUNT","RATE_DAILY","PERIOD"]
[383812168,1757125842898,-400.0,0.00069998,120]
[383812170,1757125842907,-400.0,0.00069998,120]
[383812172,1757125842916,-424.27276196,0.00069998,120]
[383812173,1757125842925,-166.28892212,0.00069998,120]
[383812175,1757125842935,-400.0,0.00069998,120]
[383812177,1757125842944,-400.0,0.00069998,120]
[383812180,1757125842952,-400.0,0.00069998,120]
[383812182,1757125842963,-400.0,0.00069998,120]
[383812183,1757125842972,-400.0,0.00069998,120]
[383812185,1757125842981,-400.0,0.00069998,120]
[383812187,1757125842991,-400.0,0.00069998,120]
[383812189,1757125843000,-408.52,0.00069998,120]
[383812191,1757125843010,-400.0,0.00069998,120]
[383812193,1757125843019,-9459.0,0.00069998,120]
[383812194,1757125843028,-346.67655944,0.00069998,110]
[383812196,1757125843037,-400.0,0.00069998,120]
[383812198,1757125843047,-400.0,0.00069998,120]
[383812200,1757125843056,-400.0,0.00069998,120]
[383812202,1757125843065,-437.63,0.00069998,120]
[383812204,1757125843075,-503.15,0.00069998,120]
[383812205,1757125843084,-400.0,0.00069998,120]
[383812207,1757125843093,-393.9,0.00069998,120]
[383812209,1757125843103,-400.0,0.00069998,120]
[383812211,1757125843112,-400.0,0.00069998,120]
[383812212,1757125843121,-400.0,0.00069998,120]
[383812214,1757125843131,-400.0,0.00069998,120]
[383812216,1757125843139,-400.0,0.00069998,120]
[383812217,1757125843148,-400.0,0.00069998,120]
[383812219,1757125843157,-400.0,0.00069998,120]
[383812221,1757125843167,-274.3,0.00069998,118]
[383812223,1757125843176,-1396.95,0.00069998,120]
[383812225,1757125843185,-476.51,0.00069998,120]
[383812227,1757125843194,-400.0,0.00069998,120]
[383812229,1757125843204,-400.0,0.00069998,120]
[383812230,1757125843213,-602.69437836,0.00069999,120]
[383812232,1757125843222,-300.0,0.00069999,60]
[383812234,1757125843231,-300.0,0.00069999,60]
[383812236,1757125843240,-400.0,0.00069999,120]
[383812237,1757125843249,-400.0,0.00069999,120]
[383812239,1757125843259,-491.87942138,0.00069999,120]
[383812241,1757125843268,-400.0,0.00069999,120]
[383812243,1757125843277,-400.0,0.00069999,120]
[383812245,1757125843287,-400.0,0.00069999,120]
[383812247,1757125843295,-346.17585871,0.00069999,120]
[383812248,1757125843304,-400.0,0.00069999,120]
[383812250,1757125843313,-400.0,0.00069999,120]
[383812252,1757125843322,-281.1030363,0.00069999,120]
[383812254,1757125843331,-400.0,0.00069999,120]
[383812256,1757125843340,-400.0,0.00069999,120]
[383812257,1757125843349,-400.0,0.00069999,120]
[383812259,1757125843358,-400.0,0.00069999,120]
[383812261,1757125843367,-500.0,0.00069999,2]
[383812263,1757125843381,-400.0,0.00069999,120]
[383812265,1757125843390,-400.0,0.00069999,120]
[383812267,1757125843399,-166.56602739,0.00069999,2]
[383812268,1757125843408,-400.0,0.00069999,120]
[383812270,1757125843419,-354.78007894,0.00069999,120]
[383812272,1757125843428,-400.0,0.00069999,120]
[383812274,1757125843437,-445.65661067,0.00069999,120]
[383812276,1757125843457,-400.0,0.00069999,120]
[383812278,1757125843468,-400.0,0.00069999,120]
[383812280,1757125843477,-400.0,0.00069999,120]
[383812281,1757125843486,-400.0,0.00069999,120]
[383812283,1757125843496,-400.0,0.00069999,120]
[383812285,1757125843505,-400.0,0.00069999,120]
[383812287,1757125843515,-400.0,0.00069999,120]
[383812289,1757125843524,-400.0,0.00069999,120]
[383812291,1757125843533,-400.0,0.00069999,120]
[383812293,1757125843543,-400.0,0.00069999,120]
[383812294,1757125843552,-214.37,0.00069999,120]
[383812296,1757125843562,-400.0,0.00069999,120]
[383812298,1757125843572,-400.0,0.00069999,120]
[383812300,1757125843581,-400.0,0.00069999,120]
[383812302,1757125843590,-230.81,0.00069999,120]
[383812304,1757125843599,-400.0,0.00069999,120]
[383812306,1757125843609,-400.0,0.00069999,120]
[383812308,1757125843618,-400.0,0.00069999,120]
[383812309,1757125843627,-400.0,0.00069999,120]
[383812311,1757125843636,-400.0,0.00069999,120]
[383812313,1757125843645,-350.0,0.00069999,120]
[383812315,1757125843654,-219.08354481,0.00069999,120]
[383812317,1757125843664,-400.0,0.00069999,120]
[383812318,1757125843673,-400.0,0.00069999,120]
[383812320,1757125843682,-400.0,0.00069999,120]
[383812322,1757125843691,-400.0,0.00069999,120]
[383812324,1757125843700,-400.0,0.00069999,120]
[383812326,1757125843711,-310.62413581,0.00069999,120]
[383812328,1757125843721,-400.0,0.00069999,120]
[383812329,1757125843729,-400.0,0.00069999,120]
[383812331,1757125843738,-400.0,0.00069999,120]
[383812333,1757125843747,-430.72627674,0.00069999,120]
[383812335,1757125843757,-400.0,0.00069999,120]
[383812337,1757125843766,-400.0,0.00069999,120]
[383812338,1757125843776,-400.0,0.00069999,120]
[383812340,1757125843785,-400.0,0.00069999,120]
[383812342,1757125843795,-390.0,0.00069999,120]
[383812344,1757125843805,-400.0,0.00069999,120]
[383812346,1757125843814,-400.0,0.00069999,120]
[383812348,1757125843823,-400.0,0.00069999,120]
[383812349,1757125843832,-400.0,0.00069999,120]
[383812351,1757125843842,-400.0,0.00069999,120]
[383812353,1757125843851,-400.0,0.00069999,120]
[383812355,1757125843860,-400.0,0.00069999,120]
[383812357,1757125843870,-400.0,0.00069999,120]
[383812359,1757125843879,-400.0,0.00069999,120]
[383812361,1757125843888,-400.0,0.00069999,120]
[383812362,1757125843897,-400.0,0.00069999,120]
[383812364,1757125843907,-400.0,0.00069999,120]
[383812366,1757125843916,-400.0,0.00069999,120]
[383812368,1757125843927,-400.0,0.00069999,120]
[383812370,1757125843936,-400.0,0.00069999,120]
[383812372,1757125843945,-400.0,0.00069999,120]
[383812373,1757125843954,-223.73871744,0.00069999,120]
[383812375,1757125843965,-400.0,0.00069999,60]
[383812377,1757125843974,-421.08,0.00069999,120]
[383812379,1757125843986,-400.0,0.00069999,120]
[383812381,1757125843995,-400.0,0.00069999,120]
[383812383,1757125844004,-400.0,0.00069999,120]
[383812385,1757125844014,-400.0,0.00069999,120]
[383812387,1757125844023,-400.0,0.00069999,120]
[383812388,1757125844033,-215.65,0.00069999,120]
[383812390,1757125844042,-400.0,0.00069999,120]
[383812392,1757125844051,-400.0,0.00069999,120]
[383812394,1757125844060,-425.6,0.00069999,120]
[383812396,1757125844070,-400.0,0.00069999,120]
[383812397,1757125844079,-396.0,0.00069999,120]
[383812399,1757125844089,-496.9,0.00069999,120]
[383812401,1757125844098,-400.0,0.00069999,120]
[383812403,1757125844107,-400.0,0.00069999,120]
[383812405,1757125844116,-375.0,0.00069999,120]
[383812407,1757125844125,-415.63,0.00069999,120]
[383812408,1757125844134,-400.0,0.00069999,120]
[383812410,1757125844143,-400.0,0.00069999,120]
[383812412,1757125844152,-400.0,0.00069999,120]
[383812414,1757125844162,-400.0,0.00069999,120]
[383812415,1757125844171,-400.0,0.00069999,120]
[383812416,1757125844180,-415.82,0.00069999,120]
[383812417,1757125844189,-226.97163786,0.00069999,120]
[383812418,1757125844197,-400.0,0.00069999,120]
[383812419,1757125844207,-400.0,0.00069999,120]
[383812420,1757125844217,-400.0,0.00069999,120]
[383812421,1757125844226,-400.0,0.00069999,120]
[383812422,1757125844235,-400.0,0.00069999,120]
[383812423,1757125844244,-400.0,0.00069999,120]
[383812424,1757125844253,-400.0,0.00069999,120]
[383812425,1757125844263,-434.45748637,0.00069999,120]
[383812426,1757125844271,-152.86,0.00069999,120]
[383812427,1757125844280,-400.0,0.00069999,120]
[383812428,1757125844289,-400.0,0.00069999,120]
[383812429,1757125844298,-400.0,0.00069999,120]
[383812430,1757125844306,-400.0,0.00069999,120]
[383812431,1757125844315,-400.0,0.00069999,120]
[383812432,1757125844324,-249.24,0.00069999,120]
[383812433,1757125844333,-500.0,0.00069999,2]
[383812435,1757125844343,-177.79428291,0.00069999,120]
[383812436,1757125844352,-206.2,0.00069999,120]
[383812438,1757125844361,-482.12299961,0.00069999,120]
[383812440,1757125844371,-400.0,0.00069999,120]
[383812441,1757125844380,-506.88950295,0.00069999,120]
[383812443,1757125844390,-400.0,0.00069999,120]
[383812445,1757125844402,-400.0,0.00069999,120]
[383812447,1757125844411,-199.39364427,0.00069999,120]
[383812448,1757125844421,-400.0,0.00069999,120]
[383812450,1757125844431,-400.0,0.00069999,120]
[383812451,1757125844440,-400.0,0.00069999,120]
[383812452,1757125844449,-442.45,0.00069999,120]
[383812453,1757125844459,-400.0,0.00069999,120]
[383812454,1757125844469,-400.0,0.00069999,120]
[383812455,1757125844478,-400.0,0.00069999,120]
[383812456,1757125844487,-400.0,0.00069999,120]
[383812457,1757125844498,-400.0,0.00069999,120]
[383812458,1757125844508,-387.16398135,0.00069999,120]
[383812459,1757125844517,-307.31,0.00069999,120]
[383812460,1757125844526,-400.0,0.00069999,120]
[383812461,1757125844536,-400.0,0.00069999,120]
[383812462,1757125844546,-400.0,0.00069999,120]
[383812463,1757125844555,-400.0,0.00069999,120]
[383812464,1757125844565,-400.0,0.00069999,120]
[383812465,1757125844574,-533.46,0.00069999,120]
[383812466,1757125844590,-9459.0,0.00069999,120]
[383812467,1757125844602,-9459.0,0.00069999,120]
[383812468,1757125844611,-9459.0,0.00069999,120]
[383812469,1757125844622,-9459.0,0.00069999,120]
[383812470,1757125844632,-9459.0,0.00069999,120]
[383812471,1757125844641,-9459.0,0.00069999,120]
[383812472,1757125844652,-9459.0,0.00069999,120]
[383812473,1757125844661,-9459.0,0.00069999,120]
[383812474,1757125844672,-9459.0,0.00069999,120]
[383812475,1757125844682,-9459.0,0.00069999,120]
[383812476,1757125844692,-9459.0,0.00069999,120]
[383812477,1757125844702,-9459.0,0.00069999,120]
[383812478,1757125844713,-9459.0,0.00069999,120]
[383812479,1757125844723,-9459.0,0.00069999,120]
[383812480,1757125844732,-9459.0,0.00069999,120]
[383812481,1757125844741,-9459.0,0.00069999,120]
[383812482,1757125844751,-9459.0,0.00069999,120]
[383812483,1757125844760,-9459.0,0.00069999,120]
[383812484,1757125844770,-9459.0,0.00069999,120]
[383812485,1757125844779,-9459.0,0.00069999,120]
[383812486,1757125844789,-9459.0,0.00069999,120]
[383812487,1757125844798,-9459.0,0.00069999,120]
[383812488,1757125844807,-9459.14370948,0.00069999,120]
[383812489,1757125844817,-400.0,0.00069999,120]
[383812490,1757125844826,-400.0,0.00069999,120]
[383812491,1757125844835,-400.0,0.00069999,120]
[383812492,1757125844845,-400.0,0.00069999,120]
[383812493,1757125844854,-400.0,0.00069999,120]
[383812494,1757125844864,-378.7400664,0.00069999,120]
[383812495,1757125844873,-400.0,0.00069999,120]
[383812496,1757125844883,-400.0,0.00069999,120]
[383812497,1757125844892,-339.99876137,0.00069999,120]
[383812498,1757125844902,-402.34150443,0.00069999,120]
[383812499,1757125844911,-400.0,0.00069999,120]
[383812500,1757125844921,-400.0,0.00069999,120]
[383812501,1757125844932,-400.0,0.00069999,120]
[383812502,1757125844942,-400.0,0.00069999,120]
[383812503,1757125844951,-400.0,0.00069999,120]
[383812504,1757125844962,-400.0,0.00069999,120]
[383812505,1757125844972,-400.0,0.00069999,120]
[383812506,1757125844982,-541.05767949,0.00069999,120]
[383812507,1757125844992,-400.0,0.00069999,120]
[383812508,1757125845001,-400.0,0.00069999,120]
[383812509,1757125845011,-400.0,0.00069999,120]
[383812510,1757125845020,-400.0,0.00069999,120]
[383812511,1757125845030,-400.0,0.00069999,120]
[383812512,1757125845040,-266.31,0.00069999,120]
[383812513,1757125845050,-317.84,0.00069999,120]
[383812514,1757125845060,-533.64110616,0.00069999,120]
[383812515,1757125845070,-400.0,0.00069999,120]
[383812516,1757125845080,-400.0,0.00069999,120]
[383812517,1757125845089,-400.0,0.00069999,120]
[383812518,1757125845099,-400.0,0.00069999,120]
[383812519,1757125845109,-400.0,0.00069999,120]
[383812520,1757125845119,-400.0,0.00069999,120]
[383812521,1757125845128,-476.4633549,0.00069999,120]
[383812522,1757125845139,-212.22601901,0.00069999,120]
[383812523,1757125845148,-400.0,0.00069999,120]
[383812524,1757125845158,-400.0,0.00069999,120]
[383812525,1757125845168,-518.34150358,0.00069999,120]
[383812526,1757125845178,-400.0,0.00069999,120]
[383812527,1757125845187,-400.0,0.00069999,120]
[383812528,1757125845197,-405.26,0.00069999,120]
[383812529,1757125845206,-435.91,0.00069999,120]
[383812530,1757125845216,-400.0,0.00069999,120]
[383812531,1757125845225,-400.0,0.00069999,120]
[383812532,1757125845235,-400.0,0.00069999,120]
[383812533,1757125845244,-400.0,0.00069999,120]
[383812534,1757125845254,-400.0,0.00069999,120]
[383812535,1757125845264,-400.0,0.00069999,120]
[383812536,1757125845273,-400.0,0.00069999,120]
[383812537,1757125845283,-400.0,0.00069999,120]
[383812538,1757125845293,-400.0,0.00069999,120]
[383812539,1757125845303,-174.7050752,0.00069999,120]
[383812540,1757125845312,-1396.95,0.00069999,120]
[383812541,1757125845322,-1396.95,0.00069999,120]
[383812542,1757125845332,-1396.95,0.00069999,120]
[383812543,1757125845342,-1396.95,0.00069999,120]
[383812544,1757125845352,-1396.95,0.00069999,120]
[383812545,1757125845362,-1396.95,0.00069999,120]
[383812546,1757125845372,-1396.95,0.00069999,120]
[383812547,1757125845382,-1396.95,0.00069999,120]
[383812548,1757125845393,-1396.95,0.00069999,120]
[383812549,1757125845403,-1396.95,0.00069999,120]
[383812550,1757125845413,-1396.95,0.00069999,120]
[383812551,1757125845423,-1396.95,0.00069999,120]
[383812552,1757125845432,-476.51,0.00069999,120]
[383812553,1757125845442,-1396.95,0.00069999,120]
[383812554,1757125845452,-476.51,0.00069999,120]
[383812555,1757125845462,-1396.95,0.00069999,120]
[383812556,1757125845472,-1396.95,0.00069999,120]
[383812557,1757125845482,-476.51,0.00069999,120]
[383812558,1757125845492,-1396.95,0.00069999,120]
[383812559,1757125845501,-476.51,0.00069999,120]
[383812560,1757125845511,-1396.95,0.00069999,120]
[383812561,1757125845520,-476.51,0.00069999,120]
[383812562,1757125845528,-1396.95,0.00069999,120]
[383812563,1757125845537,-476.51,0.00069999,120]
[383812564,1757125845546,-1396.95,0.00069999,120]
[383812565,1757125845555,-476.51,0.00069999,120]
[383812566,1757125845564,-476.51,0.00069999,120]
[383812567,1757125845576,-1396.95,0.00069999,120]
[383812568,1757125845585,-476.51,0.00069999,120]
[383812569,1757125845595,-400.0,0.00069999,120]
[383812570,1757125845604,-1396.95,0.00069999,120]
[383812571,1757125845613,-476.51,0.00069999,120]
[383812572,1757125845622,-400.0,0.00069999,120]
[383812573,1757125845631,-1397.18877932,0.00069999,120]
[383812574,1757125845642,-476.51,0.00069999,120]
[383812575,1757125845651,-400.0,0.00069999,120]
[383812576,1757125845661,-476.51,0.00069999,120]
[383812577,1757125845671,-400.0,0.00069999,120]
[383812578,1757125845681,-476.51,0.00069999,120]
[383812579,1757125845690,-476.51,0.00069999,120]
[383812580,1757125845700,-397.47050237,0.00069999,120]
[383812581,1757125845710,-476.51,0.00069999,120]
[383812582,1757125845720,-476.51,0.00069999,120]
[383812583,1757125845729,-476.51,0.00069999,120]
[383812584,1757125845739,-476.51,0.00069999,120]
[383812585,1757125845750,-476.51,0.00069999,120]
[383812586,1757125845760,-476.51,0.00069999,120]
[383812587,1757125845770,-400.0,0.00069999,120]
[383812588,1757125845779,-476.51,0.00069999,120]
[383812589,1757125845789,-476.51,0.00069999,120]
[383812590,1757125845800,-476.727982,0.00069999,120]
[383812591,1757125845818,-400.0,0.00069999,120]
[383812592,1757125845829,-400.0,0.00069999,120]
[383812593,1757125845839,-623.61715938,0.0007,120]
[383812594,1757125845850,-313742.783848,0.0007,15]
[383812595,1757125845863,-202.68919405,0.0007,120]
[383812596,1757125845873,-10000.0,0.0007,120]
[383812597,1757125845883,-173.57579138,0.0007,15]
[383812598,1757125845893,-19645.90728619,0.0007,120]
[383812599,1757125845903,-1095.50882416,0.0007,15]
[383812600,1757125845913,-399401.19017841,0.0007,120]
[383812601,1757125845924,-151.0,0.0007,120]
[383812602,1757125845933,-130070.56812526,0.0007,30]
[383812603,1757125845942,-152.980544,0.0007,120]
[383812604,1757125845952,-151.0,0.0007,120]
[383812605,1757125845962,-151.0,0.0007,120]
[383812606,1757125845972,-151.0,0.0007,120]
[383812607,1757125845982,-290.3405592,0.0007,120]
[383812608,1757125845991,-151.307591,0.0007,120]
[383812609,1757125846001,-548.93789,0.0007,30]
[383812610,1757125846010,-548.93789,0.0007,30]
[383812611,1757125846021,-151.0,0.0007,120]
[383812612,1757125846032,-548.93789,0.0007,30]
[383812613,1757125846043,-218.043565,0.0007,120]
[383812614,1757125846053,-548.93789,0.0007,30]
[383812615,1757125846063,-548.93789,0.0007,30]
[383812616,1757125846074,-548.93789,0.0007,30]
[383812617,1757125846083,-548.93789,0.0007,30]
[383812618,1757125846093,-548.93789,0.0007,30]
[383812619,1757125846102,-271.309237,0.0007,120]
[383812620,1757125846111,-153.733214,0.0007,120]
[383812621,1757125846121,-151.0,0.0007,120]
[383812622,1757125846131,-151.0,0.0007,120]
[383812623,1757125846140,-274.288235,0.0007,120]
[383812624,1757125846150,-226.54,0.0007,120]
[383812625,1757125846160,-151.7764333,0.0007,28]
[383812626,1757125846170,-205.422009,0.0007,120]
[383812627,1757125846180,-151.0,0.0007,120]
[383812628,1757125846190,-151.0,0.0007,120]
[383812629,1757125846200,-155.0894,0.0007,120]
[383812630,1757125846211,-151.0,0.0007,120]
[383812631,1757125846220,-151.0,0.0007,120]
[383812632,1757125846231,-151.0,0.0007,120]
[383812633,1757125846241,-185.592939,0.0007,120]
[383812634,1757125846251,-948055.09175837,0.0007,15]
[383812635,1757125846323,-833493.184187,0.0007,15]
[383812638,1757125846342,-6664.0,0.0007,15]
[383812640,1757125846353,-1955.4725982,0.0007,15]
[383812662,1757125847648,-2446.3264913,0.00038399,2]
[383812663,1757125847658,-153.42,0.00042478,5]
[383812664,1757125847668,-273.57,0.000541,2]
[383812665,1757125847678,-600.0,0.00054991,120]
[383812666,1757125847688,-820.72,0.000568,7]
[383812667,1757125847697,-360.0,0.00060578,120]
[383812668,1757125847707,-151.0,0.000624,120]
[383812669,1757125847716,-683.93,0.000639,14]
[383812670,1757125847725,-6673.83315985,0.0006411,30]
[383812671,1757125847751,-595.05907662,0.0006411,30]
[383812677,1757126224493,250.0,0.00015,2]
[383812679,1757126480824,-258.26934156,0.00032472,7]
[383812680,1757126523218,195.0,0.00029682,120]
[383812681,1757126525353,300.0,0.00029682,120]
[383812682,1757126527035,300.0,0.00029682,120]
[383812684,1757126739109,-159.36,0.00026983,2]
[383812685,1757126739131,-155.73725305,0.00029682,2]
[383812686,1757126816094,-94.26274695,0.00029682,2]
[383812687,1757126816120,-234.80308607,0.00032796,7]
[383812689,1757126837117,-186.55581482,0.00034999,7]
[383812690,1757126837139,-124.56840096,0.00035,30]
[383812691,1757126847094,-670.44475993,0.00035,30]
[383812693,1757126946222,-500.0,0.0003108,7]
[383812694,1757126946242,-3211.98683911,0.00035,30]
[383812695,1757126946265,-237.969024,0.00035616,10]
[383812696,1757126946285,-157.319005,0.00035616,10]
[383812697,1757126946305,-500.0,0.00035868,7]
[383812698,1757126946326,-500.0,0.00036091,7]
[383812699,1757126946346,-890.22671,0.00036712,2]
[383812700,1757126946366,-233.28,0.000369,7]
[383812701,1757126946385,-157.00556454,0.000372,120]
[383812702,1757126946405,-154.0,0.00038,120]
[383812703,1757126946430,-162.0,0.00038,120]
[383812704,1757126946452,-199.0,0.00038172,7]
[383812705,1757126946473,-605.33341214,0.000384,120]
[383812706,1757126946494,-199.0,0.00038856,9]
[383812707,1757126946520,-150.0,0.00039354,120]
[383812708,1757126946541,-1600.0,0.0003954,5]
[383812709,1757126946562,-199.0,0.00039541,11]
[383812710,1757126946582,-199.0,0.00040226,13]
[383812711,1757126946602,-500.0,0.00040336,30]
[383812712,1757126946626,-500.0,0.00040527,30]
[383812713,1757126946646,-199.0,0.00040911,15]
[383812714,1757126946667,-199.0,0.00041596,17]
[383812715,1757126946689,-187.72302709,0.00041901,31]
[383812716,1757126946712,-494.80015869,0.00041901,31]
[383812717,1757126946733,-17445.17961559,0.00041902,2]
[383812718,1757126949148,-2554.81038441,0.00041902,2]
[383812719,1757126949169,-280.0,0.00041972,30]
[383812720,1757126949193,-462.011,0.00042239,63]
[383812721,1757126949215,-199.0,0.00042281,19]
[383812722,1757126949240,-760.0,0.00042352,5]
[383812723,1757126949261,-525.0,0.00042352,4]
[383812724,1757126949283,-2290.35,0.00042707,2]
[383812725,1757126949304,-9999.99,0.00042707,2]
[383812726,1757126949328,-2470.25,0.00042707,2]
[383812727,1757126949351,-499.99,0.00042707,2]
[383812728,1757126949377,-1155.31,0.00042707,2]
[383812729,1757126949398,-9999.99,0.00042707,2]
[383812730,1757126949422,-151.29,0.00042707,120]
[383812731,1757126949442,-1723.11,0.00042707,2]
[383812732,1757126949462,-150.99,0.00042707,2]
[383812733,1757126949486,-199.0,0.00042966,21]
[383812734,1757126949506,-212.67823062,0.00043413,2]
[383812735,1757126949527,-229.64261751,0.00043512,5]
[383812736,1757126949547,-9999.99,0.00043513,2]
[383812737,1757126949568,-1300.47019799,0.00043513,2]
[383812738,1757126958083,-1153.88037711,0.00042181,2]
[383812739,1757126958106,-5000.97865489,0.00043513,2]
[383812740,1757126958135,-294.7345198,0.00043513,2]
[383812741,1757126972121,-153.42,0.00034758,2]
[383812742,1757126972143,-2663.79662732,0.00043513,2]
[383812743,1757126972164,-1572.95,0.00043513,2]
[383812744,1757126972184,-999.99,0.00043513,2]
[383812745,1757126972207,-184.86009203,0.00043573,10]
[383812746,1757126972228,-500.0,0.00043616,30]
[383812747,1757126972249,-199.0,0.00043651,23]
[383812748,1757126972271,-500.0,0.00043835,120]
[383812749,1757126972292,-500.0,0.00043835,120]
[383812750,1757126972312,-500.0,0.00043835,120]
[383812751,1757126972333,-500.0,0.00043835,120]
[383812752,1757126972353,-500.0,0.00043835,120]
[383812753,1757126972374,-500.0,0.00043835,120]
[383812754,1757126972394,-500.0,0.00043835,120]
[383812755,1757126972415,-500.0,0.00043835,120]
[383812756,1757126972435,-500.0,0.00043835,120]
[383812757,1757126972455,-288.68610328,0.00043835,120]
[383812758,1757126972475,-500.0,0.00043909,30]
[383812759,1757126972495,-199.0,0.00044336,25]
[383812760,1757126972518,-666.0,0.00044617,15]
[383812761,1757126972538,-10997.36,0.00044617,30]
[383812762,1757126972558,-154.0,0.000448,120]
[383812763,1757126972578,-1039.95,0.00045,120]
[383812764,1757126972599,-199.0,0.00045021,27]
[383812765,1757126972619,-500.0,0.00045284,30]
[383812766,1757126972639,-1041.77,0.00045703,2]
[383812767,1757126972659,-199.0,0.00045706,29]
[383812768,1757126972680,-2980.59,0.00045758,120]
[383812769,1757126972700,-500.0,0.00045783,30]
[383812770,1757126972722,-167.41,0.00045783,2]
[383812771,1757126972746,-250.0,0.00045827,120]
[383812772,1757127002742,200.0,0.00038156,30]
[383812773,1757127003939,191.0,0.00041972,30]
[383812774,1757127006430,10586.62550781,0.00043537,2]
[383812776,1757127032081,-17395.0,0.00038157,30]
[383812777,1757127032091,-54091.99476099,0.00043537,2]
[383812778,1757127032102,-160.20225,0.00045954,2]
[383812779,1757127032113,-22209.9,0.00045976,2]
[383812780,1757127032128,-200.0,0.00045982,2]
[383812781,1757127032139,-500.0,0.00046219,30]
[383812782,1757127032150,-199.0,0.00046391,31]
[383812783,1757127032163,-199.0,0.00047076,33]
[383812784,1757127032381,-170.37,0.00047131,2]
[383812785,1757127032391,-150.0,0.00047184,120]
[383812787,1757127032404,-500.0,0.000474,10]
[383812788,1757127032415,-374.44,0.0004766,2]
[383812789,1757127032427,-199.0,0.00047761,35]
[383812790,1757127032438,-204.5,0.00047769,120]
[383812791,1757127032448,-1358.09321131,0.00047857,2]
[383812793,1757127032462,-2496.43379959,0.00047857,2]
[383812795,1757127032475,-877.67466322,0.00047857,2]
[383812806,1757127032563,-4970.37832588,0.00047857,2]
[383812810,1757127032573,-852.60838184,0.00047943,30]
[383812813,1757127032583,-500.0,0.00047948,10]
[383812816,1757127032594,-597.72,0.00047954,30]
[383812819,1757127032604,-596.37,0.00047968,30]
[383812822,1757127032615,-597.87,0.0004799,30]
[383812825,1757127032626,-199.0,0.00048446,37]
[383812828,1757127032636,-500.0,0.00048544,30]
[383812831,1757127032648,-500.0,0.00048608,2]
[383812833,1757127032658,-556.99304275,0.00048798,30]
[383812835,1757127032669,-600.6,0.00048798,30]
[383812837,1757127032679,-2286.28824823,0.000488,120]
[383812857,1757127038030,-346.36011108,0.00043536,31]
[383812858,1757127038041,-13458.80677225,0.000488,120]
[383812859,1757127038052,-19952.09034975,0.000488,120]
[383812860,1757127038063,-500.0,0.00048913,30]
[383812861,1757127038074,-500.0,0.00048993,30]
[383812862,1757127038086,-64678.6202688,0.00049121,2]
[383812863,1757127038095,-199.0,0.0004913,39]
[383812864,1757127038105,-500.0,0.00049178,2]
[383812865,1757127038116,-500.0,0.0004945,30]
[383812866,1757127038133,-1229.79,0.00049666,2]
[383812867,1757127038144,-199.0,0.00049815,41]
[383812872,1757127038373,-500.0,0.00049866,30]
[383812874,1757127038389,-750.0,0.0005,120]
[383812877,1757127038400,-1039.95,0.0005,120]
[383812879,1757127038410,-374.44,0.00050043,2]
[383812881,1757127038420,-315.46843563,0.000505,43]